fUSD/lending_fUSD_20250812
["ID","MTS","AMOUNT","RATE_DAILY","PERIOD"]
[378683648,1754958672366,-1042.0,0.0001669,2]
[378683649,1754958672375,-2027.0,0.0001669,2]
[378683650,1754958672385,-565.0,0.0001669,2]
[378683651,1754958672395,-151.0,0.0001669,2]
[378683652,1754958672404,-1654.0,0.0001669,2]
[378683653,1754958672413,-302.138667,0.0001669,2]
[378683654,1754958672423,-302.138667,0.0001669,2]
[378683655,1754958672432,-151.0,0.0001669,2]
[378683656,1754958672441,-151.0,0.0001669,2]
[378683657,1754958672451,-151.0,0.0001669,2]
[378683658,1754958672460,-151.0,0.0001669,2]
[378683659,1754958672469,-517.851066,0.0001669,2]
[378683660,1754958672479,-517.851066,0.0001669,2]
[378683661,1754958672488,-269.174669,0.0001669,2]
[378683662,1754958672497,-1171.0,0.0001669,2]
[378683663,1754958672506,-151.0,0.0001669,2]
[378683664,1754958672515,-151.0,0.0001669,2]
[378683665,1754958672524,-151.0,0.0001669,2]
[378683666,1754958672534,-151.0,0.0001669,2]
[378683667,1754958672543,-151.0,0.0001669,2]
[378683668,1754958672553,-151.0,0.0001669,2]
[378683669,1754958672562,-151.0,0.0001669,2]
[378683670,1754958672571,-151.0,0.0001669,2]
[378683671,1754958672582,-151.0,0.0001669,2]
[378683672,1754958672591,-151.0,0.0001669,2]
[378683673,1754958672600,-220.966866,0.0001669,2]
[378683674,1754958672609,-151.0,0.0001669,2]
[378683675,1754958672619,-151.0,0.0001669,2]
[378683676,1754958672628,-6082.0,0.0001669,2]
[378683677,1754958672638,-3367.0,0.0001669,2]
[378683678,1754958672647,-716.0,0.0001669,2]
[378683679,1754958672656,-21461.0,0.0001669,2]
[378683680,1754958672666,-229.09562967,0.00016691,2]
[378683681,1754958672676,-151.57,0.000167,2]
[378683682,1754958672687,-444.94,0.000167,2]
[378683683,1754958672706,-403.55954958,0.00016705,2]
[378683684,1754958672716,-400.42235282,0.00016705,2]
[378683685,1754958672725,-1353.75,0.00016705,2]
[378683686,1754958672734,-400.0,0.00016705,2]
[378683687,1754958672744,-400.0,0.00016705,2]
[378683688,1754958672753,-400.0,0.00016705,2]
[378683689,1754958672763,-1368.73,0.00016705,2]
[378683690,1754958672772,-835.27,0.00016705,2]
[378683691,1754958672782,-638.05,0.00016705,2]
[378683692,1754958672791,-1206.42,0.00016705,2]
[378683693,1754958672803,-400.0,0.00016705,2]
[378683694,1754958672813,-8653.14,0.00016705,2]
[378683695,1754958672822,-151.0,0.00016706,2]
[378683696,1754958672832,-151.27632444,0.00016706,2]
[378683697,1754958672842,-151.0,0.00016706,2]
[378683698,1754958672852,-151.0,0.00016706,2]
[378683699,1754958672861,-158.522638,0.00016706,2]
[378683700,1754958672873,-158.522638,0.00016706,2]
[378683701,1754958672883,-1555.5,0.00016706,2]
[378683702,1754958672892,-151.0,0.0001671,2]
[378683703,1754958672902,-151.0,0.0001671,2]
[378683704,1754958672912,-574.72,0.00016717,2]
[378683705,1754958672921,-978.66,0.00016717,2]
[378683706,1754958672931,-539.9,0.00016717,2]
[378683707,1754958672942,-400.0,0.00016717,2]
[378683708,1754958672951,-480.66,0.00016717,2]
[378683709,1754958672962,-446.06,0.00016717,2]
[378683710,1754958672971,-632.96,0.00016717,2]
[378683711,1754958672980,-833.05,0.00016717,2]
[378683712,1754958672989,-400.0,0.00016717,2]
[378683713,1754958672998,-594.7,0.00016718,2]
[378683714,1754958673009,-400.0,0.00016718,2]
[378683715,1754958673018,-327.20845818,0.00016718,2]
[378683716,1754958673028,-400.0,0.00016718,2]
[378683717,1754958673037,-400.0,0.00016718,2]
[378683718,1754958673046,-400.0,0.00016718,2]
[378683719,1754958673055,-400.0,0.00016718,2]
[378683720,1754958673065,-400.0,0.00016718,2]
[378683721,1754958673074,-400.0,0.00016718,2]
[378683722,1754958673083,-400.0,0.00016718,2]
[378683723,1754958673093,-400.0,0.00016718,2]
[378683724,1754958673102,-400.0,0.00016718,2]
[378683725,1754958673111,-400.0,0.00016718,2]
[378683726,1754958673120,-400.0,0.00016718,2]
[378683727,1754958673129,-400.0,0.00016718,2]
[378683728,1754958673139,-400.0,0.00016718,2]
[378683729,1754958673148,-400.0,0.00016718,2]
[378683730,1754958673157,-400.0,0.00016718,2]
[378683731,1754958673167,-316.07,0.00016718,2]
[378683732,1754958673176,-400.0,0.00016718,2]
[378683733,1754958673186,-400.0,0.00016718,2]
[378683734,1754958673195,-295.127662,0.00016718,2]
[378683735,1754958673204,-541.43,0.00016718,2]
[378683736,1754958673214,-400.0,0.00016718,2]
[378683737,1754958673223,-400.0,0.00016718,2]
[378683738,1754958673232,-400.0,0.00016718,2]
[378683739,1754958673241,-253.844022,0.00016718,2]
[378683740,1754958673252,-400.0,0.00016718,2]
[378683741,1754958673265,-400.0,0.00016718,2]
[378683742,1754958673274,-586.31,0.00016718,2]
[378683743,1754958673285,-400.0,0.00016718,2]
[378683744,1754958673294,-400.0,0.00016718,2]
[378683745,1754958673304,-400.0,0.00016718,2]
[378683746,1754958673314,-400.0,0.00016718,2]
[378683747,1754958673323,-400.0,0.00016718,2]
[378683748,1754958673332,-445.65,0.00016718,2]
[378683749,1754958673341,-400.0,0.00016718,2]
[378683750,1754958673351,-400.0,0.00016718,2]
[378683751,1754958673360,-400.0,0.00016718,2]
[378683752,1754958673369,-555.3,0.00016718,2]
[378683753,1754958673378,-400.0,0.00016718,2]
[378683754,1754958673388,-455.46,0.00016718,2]
[378683755,1754958673397,-528.53,0.00016718,2]
[378683756,1754958673409,-808.45,0.00016718,2]
[378683757,1754958673419,-400.0,0.00016718,2]
[378683758,1754958673429,-400.0,0.00016718,2]
[378683759,1754958673438,-400.0,0.00016718,2]
[378683760,1754958673448,-600.96,0.00016718,2]
[378683761,1754958673458,-400.0,0.00016718,2]
[378683762,1754958673467,-400.0,0.00016718,2]
[378683763,1754958673477,-400.0,0.00016718,2]
[378683764,1754958673486,-400.0,0.00016718,2]
[378683765,1754958673496,-400.0,0.00016718,2]
[378683766,1754958673505,-400.0,0.00016718,2]
[378683767,1754958673514,-151.0,0.00016718,2]
[378683768,1754958673523,-400.0,0.00016718,2]
[378683769,1754958673533,-482.19,0.00016718,2]
[378683770,1754958673542,-400.0,0.00016718,2]
[378683771,1754958673551,-349.959486,0.00016718,2]
[378683772,1754958673561,-548.353883,0.00016718,2]
[378683773,1754958673570,-400.0,0.00016718,2]
[378683774,1754958673579,-611.02,0.00016718,2]
[378683775,1754958673589,-400.0,0.00016718,2]
[378683776,1754958673598,-409.66,0.00016718,2]
[378683777,1754958673607,-400.0,0.00016718,2]
[378683778,1754958673616,-151.0,0.00016718,2]
[378683779,1754958673625,-151.0,0.00016718,2]
[378683780,1754958673634,-652.048561,0.00016718,2]
[378683781,1754958673645,-400.0,0.00016718,2]
[378683782,1754958673654,-400.0,0.00016718,2]
[378683783,1754958673663,-642.099351,0.00016718,2]
[378683784,1754958673673,-800.99,0.00016718,2]
[378683785,1754958673683,-2551.9,0.00016718,2]
[378683786,1754958673693,-400.0,0.00016718,2]
[378683787,1754958673702,-400.0,0.00016718,2]
[378683788,1754958673711,-400.0,0.00016718,2]
[378683789,1754958673721,-400.0,0.00016718,2]
[378683790,1754958673731,-212.544856,0.00016718,2]
[378683791,1754958673740,-255.796278,0.00016718,2]
[378683792,1754958673750,-196.92068727,0.00016718,2]
[378683793,1754958673759,-1067.035245,0.00016718,2]
[378683794,1754958673769,-1067.035245,0.00016718,2]
[378683795,1754958673779,-820.43,0.00016718,2]
[378683796,1754958673788,-565.37,0.00016718,2]
[378683797,1754958673797,-400.0,0.00016718,2]
[378683798,1754958673808,-573.02,0.00016718,2]
[378683799,1754958673818,-400.0,0.00016718,2]
[378683800,1754958673830,-1278.03,0.00016718,2]
[378683801,1754958673841,-151.0,0.00016718,2]
[378683802,1754958673851,-151.0,0.00016718,2]
[378683803,1754958673863,-422.09,0.00016718,2]
[378683804,1754958673874,-151.0,0.00016718,2]
[378683805,1754958673884,-683.8,0.00016718,2]
[378683806,1754958673895,-400.0,0.00016718,2]
[378683807,1754958673905,-1082.91,0.00016718,2]
[378683808,1754958673917,-151.0,0.00016718,2]
[378683809,1754958673936,-400.0,0.00016718,2]
[378683810,1754958673946,-400.0,0.00016718,2]
[378683811,1754958673957,-400.0,0.00016718,2]
[378683812,1754958673967,-1009.96,0.00016718,2]
[378683813,1754958673977,-400.0,0.00016718,2]
[378683814,1754958673987,-400.0,0.00016718,2]
[378683815,1754958673996,-400.0,0.00016718,2]
[378683816,1754958674007,-487.32,0.00016718,2]
[378683817,1754958674018,-471.77,0.00016718,2]
[378683818,1754958674028,-601.84,0.00016718,2]
[378683819,1754958674040,-151.0,0.00016718,2]
[378683820,1754958674048,-405.23,0.00016718,2]
[378683821,1754958674058,-400.0,0.00016718,2]
[378683822,1754958674068,-400.0,0.00016718,2]
[378683823,1754958674077,-482.58,0.00016718,2]
[378683824,1754958674087,-1964.74,0.00016718,2]
[378683825,1754958674098,-400.0,0.00016718,2]
[378683826,1754958674107,-591.6,0.00016718,2]
[378683827,1754958674117,-400.0,0.00016718,2]
[378683828,1754958674128,-400.0,0.00016718,2]
[378683829,1754958674137,-400.0,0.00016718,2]
[378683830,1754958674146,-400.0,0.00016718,2]
[378683831,1754958674156,-400.0,0.00016718,2]
[378683832,1754958674165,-618.38,0.00016718,2]
[378683833,1754958674174,-448.94,0.00016718,2]
[378683834,1754958674183,-400.0,0.00016718,2]
[378683835,1754958674192,-400.0,0.00016718,2]
[378683836,1754958674202,-2118.04,0.00016718,2]
[378683837,1754958674211,-1807.34,0.00016718,2]
[378683838,1754958674221,-400.0,0.00016718,2]
[378683839,1754958674231,-400.0,0.00016718,2]
[378683840,1754958674240,-927.74,0.00016718,2]
[378683841,1754958674250,-400.0,0.00016718,2]
[378683842,1754958674259,-936.33,0.00016718,2]
[378683843,1754958674268,-977.28,0.00016718,2]
[378683844,1754958674277,-473.23,0.00016718,2]
[378683845,1754958674287,-609.57,0.00016718,2]
[378683846,1754958674296,-400.0,0.00016718,2]
[378683847,1754958674305,-1290.89,0.00016718,2]
[378683848,1754958674314,-400.0,0.00016718,2]
[378683849,1754958674324,-400.0,0.00016718,2]
[378683850,1754958674333,-417.25,0.00016718,2]
[378683851,1754958674343,-498.28,0.00016718,2]
[378683852,1754958674352,-400.0,0.00016718,2]
[378683853,1754958674362,-510.01,0.00016718,2]
[378683854,1754958674371,-400.0,0.00016718,2]
[378683855,1754958674381,-400.0,0.00016718,2]
[378683856,1754958674390,-400.0,0.00016718,2]
[378683857,1754958674399,-400.0,0.00016718,2]
[378683858,1754958674408,-400.0,0.00016718,2]
[378683859,1754958674418,-151.0,0.00016719,2]
[378683860,1754958674427,-151.0,0.00016719,2]
[378683861,1754958674436,-151.0,0.00016719,2]
[378683862,1754958674446,-151.0,0.00016719,2]
[378683863,1754958674455,-151.0,0.00016719,2]
[378683864,1754958674464,-151.0,0.00016719,2]
[378683865,1754958674474,-151.0,0.00016719,2]
[378683866,1754958674483,-261.193368,0.00016719,2]
[378683867,1754958674493,-400.0,0.00016719,2]
[378683868,1754958674503,-151.0,0.00016719,2]
[378683869,1754958674512,-400.0,0.00016719,2]
[378683870,1754958674710,-543.52,0.00016719,2]
[378683871,1754958674725,-400.0,0.00016719,2]
[378683872,1754958674735,-400.0,0.00016719,2]
[378683873,1754958674744,-3558.75,0.00016719,2]
[378683874,1754958674753,-302.138667,0.00016719,2]
[378683875,1754958674762,-302.138667,0.00016719,2]
[378683876,1754958674772,-302.138667,0.00016719,2]
[378683877,1754958674781,-415.04,0.00016719,2]
[378683878,1754958674790,-302.138667,0.00016719,2]
[378683879,1754958674802,-151.0,0.00016719,2]
[378683880,1754958674811,-151.0,0.00016719,2]
[378683881,1754958674821,-400.0,0.00016719,2]
[378683882,1754958674831,-151.0,0.00016719,2]
[378683883,1754958674840,-151.0,0.00016719,2]
[378683884,1754958674850,-151.0,0.00016719,2]
[378683885,1754958674859,-270.989162,0.00016719,2]
[378683886,1754958674868,-541.87,0.00016719,2]
[378683887,1754958674878,-686.48,0.00016719,2]
[378683888,1754958674888,-151.0,0.00016719,2]
[378683889,1754958674897,-274.105774,0.00016719,2]
[378683890,1754958674906,-400.0,0.00016719,2]
[378683891,1754958674915,-843.54,0.00016719,2]
[378683892,1754958674924,-501.49,0.00016719,2]
[378683893,1754958674933,-400.0,0.00016719,2]
[378683894,1754958674943,-400.0,0.00016719,2]
[378683895,1754958674952,-411.31,0.00016719,2]
[378683896,1754958674962,-416.82,0.00016719,2]
[378683897,1754958674970,-400.0,0.00016719,2]
[378683898,1754958674979,-400.0,0.00016719,2]
[378683899,1754958674989,-400.0,0.00016719,2]
[378683900,1754958674998,-674.0,0.00016719,2]
[378683901,1754958675007,-214.15993,0.00016719,2]
[378683902,1754958675017,-400.0,0.00016719,2]
[378683903,1754958675026,-412.88,0.00016719,2]
[378683904,1754958675035,-400.0,0.00016719,2]
[378683905,1754958675044,-151.0,0.00016719,2]
[378683906,1754958675053,-234.20962,0.00016719,2]
[378683907,1754958675063,-400.0,0.00016719,2]
[378683908,1754958675072,-400.0,0.00016719,2]
[378683909,1754958675082,-400.0,0.00016719,2]
[378683910,1754958675091,-941.84,0.00016719,2]
[378683911,1754958675100,-400.0,0.00016719,2]
[378683912,1754958675111,-435.86,0.00016719,2]
[378683913,1754958675121,-415.91,0.00016719,2]
[378683914,1754958675130,-1018.78,0.00016719,2]
[378683915,1754958675139,-170.15648385,0.00016719,2]
[378683916,1754958675149,-400.0,0.00016719,2]
[378683917,1754958675159,-400.0,0.00016719,2]
[378683918,1754958675168,-400.0,0.00016719,2]
[378683919,1754958675177,-400.0,0.00016719,2]
[378683920,1754958675187,-1343.65,0.00016719,2]
[378683921,1754958675196,-400.0,0.00016719,2]
[378683922,1754958675205,-400.0,0.00016719,2]
[378683923,1754958675215,-400.0,0.00016719,2]
[378683924,1754958675223,-400.0,0.00016719,2]
[378683925,1754958675233,-400.0,0.00016719,2]
[378683926,1754958675242,-716.34,0.00016719,2]
[378683927,1754958675251,-158.522638,0.00016719,2]
[378683928,1754958675260,-400.0,0.00016719,2]
[378683929,1754958675269,-806.63,0.00016719,2]
[378683930,1754958675278,-400.0,0.00016719,2]
[378683931,1754958675287,-158.522638,0.00016719,2]
[378683932,1754958675296,-151.0,0.00016719,2]
[378683933,1754958675305,-151.0,0.00016719,2]
[378683934,1754958675315,-400.0,0.00016719,2]
[378683935,1754958675324,-400.0,0.00016719,2]
[378683936,1754958675333,-400.0,0.00016719,2]
[378683937,1754958675342,-487.36,0.00016719,2]
[378683938,1754958675352,-403.05,0.00016719,2]
[378683939,1754958675361,-400.0,0.00016719,2]
[378683940,1754958675370,-400.0,0.00016719,2]
[378683941,1754958675379,-400.0,0.00016719,2]
[378683942,1754958675388,-400.0,0.00016719,2]
[378683943,1754958675397,-400.0,0.00016719,2]
[378683944,1754958675406,-400.0,0.00016719,2]
[378683945,1754958675415,-400.0,0.00016719,2]
[378683946,1754958675425,-400.0,0.00016719,2]
[378683947,1754958675434,-406.99,0.00016719,2]
[378683948,1754958675444,-924.79,0.00016719,2]
[378683949,1754958675453,-896.54,0.00016719,2]
[378683950,1754958675463,-400.0,0.00016719,2]
[378683951,1754958675472,-400.0,0.00016719,2]
[378683952,1754958675481,-400.0,0.00016719,2]
[378683953,1754958675490,-400.0,0.00016719,2]
[378683954,1754958675500,-400.0,0.00016719,2]
[378683955,1754958675510,-400.0,0.00016719,2]
[378683956,1754958675519,-989.5,0.00016719,2]
[378683957,1754958675529,-400.0,0.00016719,2]
[378683958,1754958675538,-400.0,0.00016719,2]
[378683959,1754958675547,-400.0,0.00016719,2]
[378683960,1754958675557,-151.0,0.00016719,2]
[378683961,1754958675566,-517.851066,0.00016719,2]
[378683962,1754958675576,-517.851066,0.00016719,2]
[378683963,1754958675585,-429.77,0.00016719,2]
[378683964,1754958675594,-517.851066,0.00016719,2]
[378683965,1754958675604,-517.851066,0.00016719,2]
[378683966,1754958675614,-400.0,0.00016719,2]
[378683967,1754958675624,-400.0,0.00016719,2]
[378683968,1754958675634,-446.06,0.00016719,2]
[378683969,1754958675644,-840.46,0.00016719,2]
[378683970,1754958675655,-400.0,0.00016719,2]
[378683971,1754958675665,-451.58,0.00016719,2]
[378683972,1754958675677,-5484.25,0.00016719,2]
[378683973,1754958675688,-165.255992,0.00016719,2]
[378683974,1754958675698,-400.0,0.00016719,2]
[378683975,1754958675707,-424.68014467,0.00016719,2]
[378683976,1754958675716,-444.43,0.00016719,2]
[378683977,1754958675726,-400.0,0.00016719,2]
[378683978,1754958675735,-151.0,0.00016719,2]
[378683979,1754958675744,-1135.69,0.00016719,2]
[378683980,1754958675754,-211.490104,0.00016719,2]
[378683981,1754958675763,-400.0,0.00016719,2]
[378683982,1754958675773,-473.46,0.00016719,2]
[378683983,1754958675782,-759.888854,0.00016719,2]
[378683984,1754958675791,-759.888854,0.00016719,2]
[378683985,1754958675804,-400.0,0.00016719,2]
[378683986,1754958675814,-759.888854,0.00016719,2]
[378683987,1754958675823,-759.888854,0.00016719,2]
[378683988,1754958675832,-504.02,0.00016719,2]
[378683989,1754958675841,-151.0,0.00016719,2]
[378683990,1754958675852,-562.93,0.00016719,2]
[378683991,1754958675861,-400.0,0.00016719,2]
[378683992,1754958675870,-425.72,0.00016719,2]
[378683993,1754958675881,-485.33,0.00016719,2]
[378683994,1754958675890,-151.0,0.00016719,2]
[378683995,1754958675899,-445.01605893,0.00016719,2]
[378683996,1754958675908,-716.05,0.00016719,2]
[378683997,1754958675917,-642.099351,0.00016719,2]
[378683998,1754958675926,-151.0,0.00016719,2]
[378683999,1754958675935,-400.0,0.00016719,2]
[378684000,1754958675945,-409.81,0.00016719,2]
[378684001,1754958675955,-1367.17,0.00016719,2]
[378684002,1754958675964,-151.0,0.00016719,2]
[378684003,1754958675974,-418.15,0.00016719,2]
[378684004,1754958675984,-400.0,0.00016719,2]
[378684005,1754958675993,-400.0,0.00016719,2]
[378684006,1754958676002,-400.0,0.00016719,2]
[378684007,1754958676012,-487.67,0.00016719,2]
[378684008,1754958676021,-400.0,0.00016719,2]
[378684009,1754958676031,-400.0,0.00016719,2]
[378684010,1754958676040,-151.0,0.00016719,2]
[378684011,1754958676049,-463.33,0.00016719,2]
[378684012,1754958676058,-203.911682,0.00016719,2]
[378684013,1754958676068,-400.0,0.00016719,2]
[378684014,1754958676077,-1067.035245,0.00016719,2]
[378684015,1754958676086,-1067.035245,0.00016719,2]
[378684016,1754958676095,-400.0,0.00016719,2]
[378684017,1754958676105,-400.0,0.00016719,2]
[378684018,1754958676114,-400.0,0.00016719,2]
[378684019,1754958676124,-1005.19,0.00016719,2]
[378684020,1754958676134,-400.0,0.00016719,2]
[378684021,1754958676144,-456.21,0.00016719,2]
[378684022,1754958676154,-400.0,0.00016719,2]
[378684023,1754958676164,-760.85,0.00016719,2]
[378684024,1754958676174,-400.0,0.00016719,2]
[378684025,1754958676184,-151.0,0.00016719,2]
[378684026,1754958676194,-461.28,0.00016719,2]
[378684027,1754958676204,-400.0,0.00016719,2]
[378684028,1754958676215,-151.0,0.00016719,2]
[378684029,1754958676225,-245.236517,0.00016719,2]
[378684030,1754958676234,-400.0,0.00016719,2]
[378684031,1754958676243,-668.63,0.00016719,2]
[378684032,1754958676253,-415.53,0.00016719,2]
[378684033,1754958676263,-1056.23,0.00016719,2]
[378684034,1754958676273,-151.0,0.00016719,2]
[378684035,1754958676284,-400.0,0.00016719,2]
[378684036,1754958676295,-400.0,0.00016719,2]
[378684037,1754958676306,-401.8,0.00016719,2]
[378684038,1754958676316,-400.0,0.00016719,2]
[378684039,1754958676326,-400.0,0.00016719,2]
[378684040,1754958676336,-1254.99,0.00016719,2]
[378684041,1754958676346,-400.0,0.00016719,2]
[378684042,1754958676356,-151.0,0.00016719,2]
[378684043,1754958676365,-400.0,0.00016719,2]
[378684044,1754958676375,-151.0,0.00016719,2]
[378684045,1754958676386,-282.962969,0.00016719,2]
[378684046,1754958676395,-400.0,0.00016719,2]
[378684047,1754958676405,-400.0,0.00016719,2]
[378684048,1754958676415,-448.0,0.00016719,2]
[378684049,1754958676424,-434.77,0.00016719,2]
[378684050,1754958676434,-416.54,0.00016719,2]
[378684051,1754958676443,-400.0,0.00016719,2]
[378684052,1754958676453,-400.0,0.00016719,2]
[378684053,1754958676462,-400.0,0.00016719,2]
[378684054,1754958676472,-400.0,0.00016719,2]
[378684055,1754958676482,-1026.25,0.00016719,2]
[378684056,1754958676493,-400.0,0.00016719,2]
[378684057,1754958676503,-428.67,0.00016719,2]
[378684058,1754958676513,-855.22,0.00016719,2]
[378684059,1754958676523,-527.94,0.00016719,2]
[378684060,1754958676532,-400.0,0.00016719,2]
[378684061,1754958676542,-400.0,0.00016719,2]
[378684062,1754958676551,-690.8,0.00016719,2]
[378684063,1754958676561,-400.0,0.00016719,2]
[378684064,1754958676572,-660.29,0.00016719,2]
[378684065,1754958676584,-661.7,0.00016719,2]
[378684066,1754958676593,-400.0,0.00016719,2]
[378684067,1754958676606,-400.0,0.00016719,2]
[378684068,1754958676616,-400.0,0.00016719,2]
[378684069,1754958676626,-400.0,0.00016719,2]
[378684070,1754958676636,-553.06,0.00016719,2]
[378684071,1754958676647,-485.52,0.00016719,2]
[378684072,1754958676657,-400.0,0.00016719,2]
[378684073,1754958676668,-414.15,0.00016719,2]
[378684074,1754958676682,-689.02,0.00016719,2]
[378684075,1754958676696,-466.29,0.00016719,2]
[378684076,1754958676707,-151.0,0.0001672,2]
[378684077,1754958676717,-158.522638,0.0001672,2]
[378684078,1754958676728,-158.522638,0.0001672,2]
[378684079,1754958676740,-172.691,0.0001672,2]
[378684080,1754958676751,-2198.924,0.0001672,2]
[378684081,1754958676760,-151.0,0.0001672,2]
[378684082,1754958676771,-151.0,0.0001672,2]
[378684083,1754958676780,-151.0,0.0001672,2]
[378684084,1754958676792,-151.0,0.0001672,2]
[378684085,1754958676806,-151.0,0.0001672,2]
[378684086,1754958676816,-151.0,0.00016729,2]
[378684087,1754958676825,-1107.19,0.00016729,2]
[378684088,1754958676835,-1067.035245,0.00016729,2]
[378684089,1754958676846,-1067.035245,0.00016729,2]
[378684090,1754958676855,-646.57,0.00016729,2]
[378684091,1754958676865,-739.29,0.00016729,2]
[378684092,1754958676875,-541.35,0.00016729,2]
[378684093,1754958676885,-756.83,0.00016729,2]
[378684094,1754958676897,-400.0,0.00016729,2]
[378684095,1754958676907,-540.43,0.00016729,2]
[378684096,1754958676917,-880.76,0.00016729,2]
[378684097,1754958676928,-1331.32,0.00016729,2]
[378684098,1754958676942,-1152.75,0.00016729,2]
[378684099,1754958676953,-1103.08,0.00016729,2]
[378684100,1754958676964,-673.98,0.00016729,2]
[378684101,1754958676976,-667.16,0.00016729,2]
[378684102,1754958676988,-1238.08,0.00016729,2]
[378684103,1754958677001,-723.65,0.00016729,2]
[378684104,1754958677013,-741.47,0.00016729,2]
[378684105,1754958677024,-1093.69,0.00016729,2]
[378684106,1754958677036,-5867.06,0.00016729,2]
[378684107,1754958677048,-581.96,0.00016729,2]
[378684108,1754958677060,-151.0,0.0001673,2]
[378684109,1754958677073,-151.0,0.0001673,2]
[378684110,1754958677085,-810.42,0.0001673,2]
[378684111,1754958677097,-215.40131274,0.0001674,2]
[378684112,1754958677108,-229.09562967,0.00016749,2]
[378684113,1754958677120,-1555.5,0.00016798,2]
[378684114,1754958677131,-3066.19,0.000168,2]
[378684115,1754958677143,-229.09562967,0.00016806,2]
[378684116,1754958677156,-400.0,0.00016812,2]
[378684117,1754958677169,-400.0,0.00016812,2]
[378684118,1754958677181,-400.0,0.00016812,2]
[378684119,1754958677198,-400.0,0.00016812,2]
[378684120,1754958677217,-400.0,0.00016812,2]
[378684121,1754958677229,-400.0,0.00016812,2]
[378684122,1754958677243,-400.0,0.00016812,2]
[378684123,1754958677327,-400.0,0.00016812,2]
[378684124,1754958677339,-400.0,0.00016812,2]
[378684125,1754958677352,-400.0,0.00016812,2]
[378684126,1754958677363,-400.0,0.00016812,2]
[378684127,1754958677374,-400.0,0.00016812,2]
[378684128,1754958677385,-400.0,0.00016812,2]
[378684129,1754958677396,-400.0,0.00016812,2]
[378684130,1754958677407,-400.0,0.00016812,2]
[378684131,1754958677418,-400.0,0.00016812,2]
[378684132,1754958677429,-400.0,0.00016812,2]
[378684133,1754958677440,-400.0,0.00016812,2]
[378684134,1754958677452,-400.21972727,0.00016812,2]
[378684135,1754958677464,-400.0,0.00016812,2]
[378684136,1754958677475,-191.03276466,0.00016812,2]
[378684137,1754958677485,-400.0,0.00016812,2]
[378684138,1754958677495,-400.0,0.00016812,2]
[378684139,1754958677505,-400.0,0.00016812,2]
[378684140,1754958677515,-400.0,0.00016812,2]
[378684141,1754958677525,-400.0,0.00016812,2]
[378684142,1754958677535,-400.0,0.00016812,2]
[378684143,1754958677545,-400.0,0.00016812,2]
[378684144,1754958677556,-400.0,0.00016812,2]
[378684145,1754958677566,-400.0,0.00016812,2]
[378684146,1754958677576,-400.0,0.00016812,2]
[378684147,1754958677586,-400.0,0.00016812,2]